Workbook

Sheet 仪表板
N1: =BudgetName&" 交互式预算" -> 孙荷佑一家 2012 年 交互式预算
A3: =图表数据!C38 -> ¥40,000
D5: 收入
A7: =图表数据!C39 -> ¥59,330
D9: 支出
A11: =图表数据!D40& "¥"&图表数据!C40 -> -¥19330
D13: 现金流量

Sheet 预算
C1: 1 月 | D1: 2 月 | E1: 3 月 | F1: 4 月 | G1: 5 月 | H1: 6 月 | I1: 7 月 | J1: 8 月 | K1: 9 月 | L1: 10 月 | M1: 11 月 | N1: 12 月 | O1: 年 | P1: 平均
B5: 期初结余 | C5: 10000
B6: 总收入 | C6: =SUM(tblIncome[1 月]) -> 42220 | D6: =SUM(tblIncome[2 月]) -> 90330 | E6: =SUM(tblIncome[3 月]) -> 40000 | F6: =SUM(tblIncome[4 月]) -> 40450 | G6: =SUM(tblIncome[5 月]) -> 90000 | H6: =SUM(tblIncome[6 月]) -> 15250 | I6: =SUM(tblIncome[7 月]) -> 15000 | J6: =SUM(tblIncome[8 月]) -> 65000 | K6: =SUM(tblIncome[9 月]) -> 40000 | L6: =SUM(tblIncome[10 月]) -> 40000 | M6: =SUM(tblIncome[11 月]) -> 90000 | N6: =SUM(tblIncome[12 月]) -> 40000 | O6: =SUM(tblIncome[年]) -> 608250 | P6: =O6/12 -> 50688
B7: 总支出 | C7: =SUM(tblExpenseCategory_01[1 月],tblExpenseCategory_02[1 月],tblExpenseCategory_03[1 月],tblExpenseCategory_04[1 月],tblExpenseCategory_05[1 月],tblExpenseCategory_06[1 月],tblExpenseCategory_07[1 月],tblExpenseCategory_08[1 月],tblExpenseCategory_09[1 月],tblExpenseCategory_10[1 月],tblExpenseCategory_11[1 月],tblExpenseCategory_12[1 月],tblExpenseCategory_13[1 月],tblExpenseCategory_14[1 月],tblExpenseCategory_15[1 月]) -> 79360 | D7: =SUM(tblExpenseCategory_01[2 月],tblExpenseCategory_02[2 月],tblExpenseCategory_03[2 月],tblExpenseCategory_04[2 月],tblExpenseCategory_05[2 月],tblExpenseCategory_06[2 月],tblExpenseCategory_07[2 月],tblExpenseCategory_08[2 月],tblExpenseCategory_09[2 月],tblExpenseCategory_10[2 月],tblExpenseCategory_11[2 月],tblExpenseCategory_12[2 月],tblExpenseCategory_13[2 月],tblExpenseCategory_14[2 月],tblExpenseCategory_15[2 月]) -> 52430 | E7: =SUM(tblExpenseCategory_01[3 月],tblExpenseCategory_02[3 月],tblExpenseCategory_03[3 月],tblExpenseCategory_04[3 月],tblExpenseCategory_05[3 月],tblExpenseCategory_06[3 月],tblExpenseCategory_07[3 月],tblExpenseCategory_08[3 月],tblExpenseCategory_09[3 月],tblExpenseCategory_10[3 月],tblExpenseCategory_11[3 月],tblExpenseCategory_12[3 月],tblExpenseCategory_13[3 月],tblExpenseCategory_14[3 月],tblExpenseCategory_15[3 月]) -> 59330 | F7: =SUM(tblExpenseCategory_01[4 月],tblExpenseCategory_02[4 月],tblExpenseCategory_03[4 月],tblExpenseCategory_04[4 月],tblExpenseCategory_05[4 月],tblExpenseCategory_06[4 月],tblExpenseCategory_07[4 月],tblExpenseCategory_08[4 月],tblExpenseCategory_09[4 月],tblExpenseCategory_10[4 月],tblExpenseCategory_11[4 月],tblExpenseCategory_12[4 月],tblExpenseCategory_13[4 月],tblExpenseCategory_14[4 月],tblExpenseCategory_15[4 月]) -> 58580 | G7: =SUM(tblExpenseCategory_01[5 月],tblExpenseCategory_02[5 月],tblExpenseCategory_03[5 月],tblExpenseCategory_04[5 月],tblExpenseCategory_05[5 月],tblExpenseCategory_06[5 月],tblExpenseCategory_07[5 月],tblExpenseCategory_08[5 月],tblExpenseCategory_09[5 月],tblExpenseCategory_10[5 月],tblExpenseCategory_11[5 月],tblExpenseCategory_12[5 月],tblExpenseCategory_13[5 月],tblExpenseCategory_14[5 月],tblExpenseCategory_15[5 月]) -> 54680 | H7: =SUM(tblExpenseCategory_01[6 月],tblExpenseCategory_02[6 月],tblExpenseCategory_03[6 月],tblExpenseCategory_04[6 月],tblExpenseCategory_05[6 月],tblExpenseCategory_06[6 月],tblExpenseCategory_07[6 月],tblExpenseCategory_08[6 月],tblExpenseCategory_09[6 月],tblExpenseCategory_10[6 月],tblExpenseCategory_11[6 月],tblExpenseCategory_12[6 月],tblExpenseCategory_13[6 月],tblExpenseCategory_14[6 月],tblExpenseCategory_15[6 月]) -> 51180 | I7: =SUM(tblExpenseCategory_01[7 月],tblExpenseCategory_02[7 月],tblExpenseCategory_03[7 月],tblExpenseCategory_04[7 月],tblExpenseCategory_05[7 月],tblExpenseCategory_06[7 月],tblExpenseCategory_07[7 月],tblExpenseCategory_08[7 月],tblExpenseCategory_09[7 月],tblExpenseCategory_10[7 月],tblExpenseCategory_11[7 月],tblExpenseCategory_12[7 月],tblExpenseCategory_13[7 月],tblExpenseCategory_14[7 月],tblExpenseCategory_15[7 月]) -> 57430 | J7: =SUM(tblExpenseCategory_01[8 月],tblExpenseCategory_02[8 月],tblExpenseCategory_03[8 月],tblExpenseCategory_04[8 月],tblExpenseCategory_05[8 月],tblExpenseCategory_06[8 月],tblExpenseCategory_07[8 月],tblExpenseCategory_08[8 月],tblExpenseCategory_09[8 月],tblExpenseCategory_10[8 月],tblExpenseCategory_11[8 月],tblExpenseCategory_12[8 月],tblExpenseCategory_13[8 月],tblExpenseCategory_14[8 月],tblExpenseCategory_15[8 月]) -> 53530 | K7: =SUM(tblExpenseCategory_01[9 月],tblExpenseCategory_02[9 月],tblExpenseCategory_03[9 月],tblExpenseCategory_04[9 月],tblExpenseCategory_05[9 月],tblExpenseCategory_06[9 月],tblExpenseCategory_07[9 月],tblExpenseCategory_08[9 月],tblExpenseCategory_09[9 月],tblExpenseCategory_10[9 月],tblExpenseCategory_11[9 月],tblExpenseCategory_12[9 月],tblExpenseCategory_13[9 月],tblExpenseCategory_14[9 月],tblExpenseCategory_15[9 月]) -> 59830 | L7: =SUM(tblExpenseCategory_01[10 月],tblExpenseCategory_02[10 月],tblExpenseCategory_03[10 月],tblExpenseCategory_04[10 月],tblExpenseCategory_05[10 月],tblExpenseCategory_06[10 月],tblExpenseCategory_07[10 月],tblExpenseCategory_08[10 月],tblExpenseCategory_09[10 月],tblExpenseCategory_10[10 月],tblExpenseCategory_11[10 月],tblExpenseCategory_12[10 月],tblExpenseCategory_13[10 月],tblExpenseCategory_14[10 月],tblExpenseCategory_15[10 月]) -> 59430 | M7: =SUM(tblExpenseCategory_01[11 月],tblExpenseCategory_02[11 月],tblExpenseCategory_03[11 月],tblExpenseCategory_04[11 月],tblExpenseCategory_05[11 月],tblExpenseCategory_06[11 月],tblExpenseCategory_07[11 月],tblExpenseCategory_08[11 月],tblExpenseCategory_09[11 月],tblExpenseCategory_10[11 月],tblExpenseCategory_11[11 月],tblExpenseCategory_12[11 月],tblExpenseCategory_13[11 月],tblExpenseCategory_14[11 月],tblExpenseCategory_15[11 月]) -> 50580 | N7: =SUM(tblExpenseCategory_01[12 月],tblExpenseCategory_02[12 月],tblExpenseCategory_03[12 月],tblExpenseCategory_04[12 月],tblExpenseCategory_05[12 月],tblExpenseCategory_06[12 月],tblExpenseCategory_07[12 月],tblExpenseCategory_08[12 月],tblExpenseCategory_09[12 月],tblExpenseCategory_10[12 月],tblExpenseCategory_11[12 月],tblExpenseCategory_12[12 月],tblExpenseCategory_13[12 月],tblExpenseCategory_14[12 月],tblExpenseCategory_15[12 月]) -> 49580 | O7: =SUM(tblExpenseCategory_01[年],tblExpenseCategory_02[年],tblExpenseCategory_03[年],tblExpenseCategory_04[年],tblExpenseCategory_05[年],tblExpenseCategory_06[年],tblExpenseCategory_07[年],tblExpenseCategory_08[年],tblExpenseCategory_09[年],tblExpenseCategory_10[年],tblExpenseCategory_11[年],tblExpenseCategory_12[年],tblExpenseCategory_13[年],tblExpenseCategory_14[年],tblExpenseCategory_15[年]) -> 685940 | P7: =O7/12 -> 57162
B8: 净收入 | C8: =C6-C7 -> -37140 | D8: =D6-D7 -> 37900 | E8: -19330 | F8: -18130 | G8: 35320 | H8: -35930 | I8: -42430 | J8: 11470 | K8: -19830 | L8: -19430 | M8: 39420 | N8: -9580 | O8: -77690 | P8: =O8/12 -> -6474
B9: 总现金流 | C9: =C5+C6-C7 -> -27140 | D9: =C9+D6-D7 -> 10760 | E9: =D9+E6-E7 -> -8570 | F9: -26700 | G9: 8620 | H9: -27310 | I9: -69740 | J9: -58270 | K9: -78100 | L9: -97530 | M9: -58110 | N9: -67690
B12: 收入
B13: 工资和消费 | C13: 40000 | D13: 40000 | E13: 40000 | F13: 40000 | G13: 40000 | H13: 10000 | I13: 10000 | J13: 10000 | K13: 40000 | L13: 40000 | M13: 40000 | N13: 40000 | O13: =SUM(tblIncome[[#This Row],[1 月]:[12 月]]) -> 390000 | P13: =tblIncome[[#This Row],[年]]/12 -> 32500
B14: 利息收入 | C14: 2220 | D14: 330 | F14: 450 | H14: 250 | O14: =SUM(tblIncome[[#This Row],[1 月]:[12 月]]) -> 3250 | P14: =tblIncome[[#This Row],[年]]/12 -> 271
B15: 红利 | D15: 50000 | G15: 50000 | J15: 50000 | M15: 50000 | O15: =SUM(tblIncome[[#This Row],[1 月]:[12 月]]) -> 200000 | P15: =tblIncome[[#This Row],[年]]/12 -> 16667
B16: 还款/退款 | H16: 5000 | I16: 5000 | J16: 5000 | O16: =SUM(tblIncome[[#This Row],[1 月]:[12 月]]) -> 15000 | P16: =tblIncome[[#This Row],[年]]/12 -> 1250
B17: 其他 | O17: =SUM(tblIncome[[#This Row],[1 月]:[12 月]]) -> 0 | P17: =tblIncome[[#This Row],[年]]/12 -> 0
B18: =UPPER(B12&" 总额") -> 收入 总额 | C18: =SUM(tblIncome[1 月]) -> 42220 | D18: =SUM(tblIncome[2 月]) -> 90330 | E18: =SUM(tblIncome[3 月]) -> 40000 | F18: =SUM(tblIncome[4 月]) -> 40450 | G18: =SUM(tblIncome[5 月]) -> 90000 | H18: =SUM(tblIncome[6 月]) -> 15250 | I18: =SUM(tblIncome[7 月]) -> 15000 | J18: =SUM(tblIncome[8 月]) -> 65000 | K18: =SUM(tblIncome[9 月]) -> 40000 | L18: =SUM(tblIncome[10 月]) -> 40000 | M18: =SUM(tblIncome[11 月]) -> 90000 | N18: =SUM(tblIncome[12 月]) -> 40000 | O18: =SUM(tblIncome[年]) -> 608250 | P18: =tblIncome[[#Totals],[年]]/12 -> 50688
B21: 住宅
B22: 押金/租金 | C22: 8500 | D22: 8500 | E22: 8500 | F22: 8500 | G22: 8500 | H22: 8500 | I22: 8500 | J22: 8500 | K22: 8500 | L22: 8500 | M22: 9000 | N22: 9000 | O22: =SUM(tblExpenseCategory_01[[#This Row],[1 月]:[12 月]]) -> 103000 | P22: =tblExpenseCategory_01[[#This Row],[年]]/12 -> 8583
B23: 电费 | C23: 2000 | D23: 2000 | E23: 1750 | F23: 1500 | G23: 1500 | H23: 1750 | I23: 2250 | J23: 2750 | K23: 2000 | L23: 1500 | M23: 1500 | N23: 1500 | O23: =SUM(tblExpenseCategory_01[[#This Row],[1 月]:[12 月]]) -> 22000 | P23: =tblExpenseCategory_01[[#This Row],[年]]/12 -> 1833
B24: 电话 | C24: 500 | D24: 500 | E24: 1000 | F24: 1000 | G24: 500 | H24: 500 | I24: 1000 | J24: 1000 | K24: 500 | L24: 500 | M24: 500 | N24: 500 | O24: =SUM(tblExpenseCategory_01[[#This Row],[1 月]:[12 月]]) -> 8000 | P24: =tblExpenseCategory_01[[#This Row],[年]]/12 -> 667
B25: 有线/卫星电视 | C25: 690 | D25: 690 | E25: 690 | F25: 690 | G25: 690 | H25: 690 | I25: 690 | J25: 690 | K25: 690 | L25: 690 | M25: 690 | N25: 690 | O25: =SUM(tblExpenseCategory_01[[#This Row],[1 月]:[12 月]]) -> 8280 | P25: =tblExpenseCategory_01[[#This Row],[年]]/12 -> 690
B26: 网费 | C26: 390 | D26: 390 | E26: 390 | F26: 390 | G26: 390 | H26: 390 | I26: 390 | J26: 390 | K26: 390 | L26: 390 | M26: 390 | N26: 390 | O26: =SUM(tblExpenseCategory_01[[#This Row],[1 月]:[12 月]]) -> 4680 | P26: =tblExpenseCategory_01[[#This Row],[年]]/12 -> 390
B27: =UPPER(B21&" 总额") -> 住宅 总额 | C27: =SUM(tblExpenseCategory_01[1 月]) -> 12080 | D27: =SUM(tblExpenseCategory_01[2 月]) -> 12080 | E27: =SUM(tblExpenseCategory_01[3 月]) -> 12330 | F27: =SUM(tblExpenseCategory_01[4 月]) -> 12080 | G27: =SUM(tblExpenseCategory_01[5 月]) -> 11580 | H27: =SUM(tblExpenseCategory_01[6 月]) -> 11830 | I27: =SUM(tblExpenseCategory_01[7 月]) -> 12830 | J27: =SUM(tblExpenseCategory_01[8 月]) -> 13330 | K27: =SUM(tblExpenseCategory_01[9 月]) -> 12080 | L27: =SUM(tblExpenseCategory_01[10 月]) -> 11580 | M27: =SUM(tblExpenseCategory_01[11 月]) -> 12080 | N27: =SUM(tblExpenseCategory_01[12 月]) -> 12080 | O27: =SUM(tblExpenseCategory_01[年]) -> 145960 | P27: =tblExpenseCategory_01[[#Totals],[年]]/12 -> 12163
B30: 日常生活
B31: 日用杂货 | C31: 3450 | D31: 2500 | E31: 2000 | F31: 4000 | G31: 3500 | H31: 2500 | I31: 4000 | J31: 3500 | K31: 2500 | L31: 4000 | M31: 3500 | N31: 2500 | O31: =SUM(tblExpenseCategory_02[[#This Row],[1 月]:[12 月]]) -> 37950 | P31: =tblExpenseCategory_02[[#This Row],[年]]/12 -> 3163
B32: 服饰 | C32: 3000 | F32: 3000 | I32: 3000 | L32: 3000 | O32: =SUM(tblExpenseCategory_02[[#This Row],[1 月]:[12 月]]) -> 12000 | P32: =tblExpenseCategory_02[[#This Row],[年]]/12 -> 1000
B33: 在外就餐 | C33: 1250 | D33: 1250 | E33: 3000 | F33: 1250 | G33: 1250 | H33: 2000 | I33: 1250 | J33: 1250 | K33: 1250 | L33: 1250 | M33: 1250 | N33: 1250 | O33: =SUM(tblExpenseCategory_02[[#This Row],[1 月]:[12 月]]) -> 17500 | P33: =tblExpenseCategory_02[[#This Row],[年]]/12 -> 1458
B34: 美容/理发 | C34: 250 | E34: 500 | G34: 250 | I34: 500 | K34: 250 | M34: 1000 | O34: =SUM(tblExpenseCategory_02[[#This Row],[1 月]:[12 月]]) -> 2750 | P34: =tblExpenseCategory_02[[#This Row],[年]]/12 -> 229
B35: 其他 | O35: =SUM(tblExpenseCategory_02[[#This Row],[1 月]:[12 月]]) -> 0 | P35: =tblExpenseCategory_02[[#This Row],[年]]/12 -> 0
B36: =UPPER(B30&" 总额") -> 日常生活 总额 | C36: =SUM(tblExpenseCategory_02[1 月]) -> 7950 | D36: =SUM(tblExpenseCategory_02[2 月]) -> 3750 | E36: =SUM(tblExpenseCategory_02[3 月]) -> 5500 | F36: =SUM(tblExpenseCategory_02[4 月]) -> 8250 | G36: =SUM(tblExpenseCategory_02[5 月]) -> 5000 | H36: =SUM(tblExpenseCategory_02[6 月]) -> 4500 | I36: =SUM(tblExpenseCategory_02[7 月]) -> 8750 | J36: =SUM(tblExpenseCategory_02[8 月]) -> 4750 | K36: =SUM(tblExpenseCategory_02[9 月]) -> 4000 | L36: =SUM(tblExpenseCategory_02[10 月]) -> 8250 | M36: =SUM(tblExpenseCategory_02[11 月]) -> 5750 | N36: =SUM(tblExpenseCategory_02[12 月]) -> 3750 | O36: =SUM(tblExpenseCategory_02[年]) -> 70200 | P36: =tblExpenseCategory_02[[#Totals],[年]]/12 -> 5850
B39: 孩子
B40: 学校用品 | C40: 1230 | E40: 1000 | J40: 3450 | O40: =SUM(tblExpenseCategory_03[[#This Row],[1 月]:[12 月]]) -> 5680 | P40: =tblExpenseCategory_03[[#This Row],[年]]/12 -> 473
B41: 服饰 | D41: 1000 | G41: 1000 | K41: 1000 | N41: 1000 | O41: =SUM(tblExpenseCategory_03[[#This Row],[1 月]:[12 月]]) -> 4000 | P41: =tblExpenseCategory_03[[#This Row],[年]]/12 -> 333
B42: 学校午餐 | C42: 500 | D42: 500 | E42: 500 | F42: 500 | G42: 500 | H42: 500 | K42: 500 | L42: 500 | M42: 500 | N42: 500 | O42: =SUM(tblExpenseCategory_03[[#This Row],[1 月]:[12 月]]) -> 5000 | P42: =tblExpenseCategory_03[[#This Row],[年]]/12 -> 417
B43: 医疗 | C43: 2000 | D43: 2000 | E43: 2000 | F43: 2000 | G43: 2000 | H43: 2000 | I43: 2000 | J43: 2000 | K43: 2000 | L43: 2000 | M43: 2000 | N43: 2000 | O43: =SUM(tblExpenseCategory_03[[#This Row],[1 月]:[12 月]]) -> 24000 | P43: =tblExpenseCategory_03[[#This Row],[年]]/12 -> 2000
B44: 其他 | C44: 20000 | D44: 1500 | H44: 2000 | L44: 1000 | O44: =SUM(tblExpenseCategory_03[[#This Row],[1 月]:[12 月]]) -> 24500 | P44: =tblExpenseCategory_03[[#This Row],[年]]/12 -> 2042
B45: =UPPER(B39&" 总额") -> 孩子 总额 | C45: =SUM(tblExpenseCategory_03[1 月]) -> 23730 | D45: =SUM(tblExpenseCategory_03[2 月]) -> 5000 | E45: =SUM(tblExpenseCategory_03[3 月]) -> 3500 | F45: =SUM(tblExpenseCategory_03[4 月]) -> 2500 | G45: =SUM(tblExpenseCategory_03[5 月]) -> 3500 | H45: =SUM(tblExpenseCategory_03[6 月]) -> 4500 | I45: =SUM(tblExpenseCategory_03[7 月]) -> 2000 | J45: =SUM(tblExpenseCategory_03[8 月]) -> 5450 | K45: =SUM(tblExpenseCategory_03[9 月]) -> 3500 | L45: =SUM(tblExpenseCategory_03[10 月]) -> 3500 | M45: =SUM(tblExpenseCategory_03[11 月]) -> 2500 | N45: =SUM(tblExpenseCategory_03[12 月]) -> 3500 | O45: =SUM(tblExpenseCategory_03[年]) -> 63180 | P45: =tblExpenseCategory_03[[#Totals],[年]]/12 -> 5265
B48: 交通
B49: 交通工具费用 | C49: 6000 | D49: 6000 | E49: 6000 | F49: 6000 | G49: 6000 | H49: 6000 | I49: 6000 | J49: 6000 | K49: 6000 | L49: 6000 | M49: 6000 | N49: 6000 | O49: =SUM(tblExpenseCategory_04[[#This Row],[1 月]:[12 月]]) -> 72000 | P49: =tblExpenseCategory_04[[#This Row],[年]]/12 -> 6000
B50: 燃油 | C50: 3250 | D50: 3250 | E50: 3250 | F50: 3250 | G50: 3250 | H50: 5000 | I50: 5000 | J50: 5000 | K50: 3250 | L50: 3250 | M50: 3250 | N50: 3250 | O50: =SUM(tblExpenseCategory_04[[#This Row],[1 月]:[12 月]]) -> 44250 | P50: =tblExpenseCategory_04[[#This Row],[年]]/12 -> 3688
B51: 修理 | D51: 1000 | F51: 1000 | H51: 1000 | J51: 1000 | L51: 1000 | O51: =SUM(tblExpenseCategory_04[[#This Row],[1 月]:[12 月]]) -> 5000 | P51: =tblExpenseCategory_04[[#This Row],[年]]/12 -> 417
B52: 登记/许可证 | C52: 1850 | K52: 2250 | O52: =SUM(tblExpenseCategory_04[[#This Row],[1 月]:[12 月]]) -> 4100 | P52: =tblExpenseCategory_04[[#This Row],[年]]/12 -> 342
B53: 其他 | G53: 4000 | O53: =SUM(tblExpenseCategory_04[[#This Row],[1 月]:[12 月]]) -> 4000 | P53: =tblExpenseCategory_04[[#This Row],[年]]/12 -> 333
B54: =UPPER(B48&" 总额") -> 交通 总额 | C54: =SUM(tblExpenseCategory_04[1 月]) -> 11100 | D54: =SUM(tblExpenseCategory_04[2 月]) -> 10250 | E54: =SUM(tblExpenseCategory_04[3 月]) -> 9250 | F54: =SUM(tblExpenseCategory_04[4 月]) -> 10250 | G54: =SUM(tblExpenseCategory_04[5 月]) -> 13250 | H54: =SUM(tblExpenseCategory_04[6 月]) -> 12000 | I54: =SUM(tblExpenseCategory_04[7 月]) -> 11000 | J54: =SUM(tblExpenseCategory_04[8 月]) -> 12000 | K54: =SUM(tblExpenseCategory_04[9 月]) -> 11500 | L54: =SUM(tblExpenseCategory_04[10 月]) -> 10250 | M54: =SUM(tblExpenseCategory_04[11 月]) -> 9250 | N54: =SUM(tblExpenseCategory_04[12 月]) -> 9250 | O54: =SUM(tblExpenseCategory_04[年]) -> 129350 | P54: =tblExpenseCategory_04[[#Totals],[年]]/12 -> 10779
B57: 健康
B58: 医生/牙医 | D58: 350 | G58: 350 | H58: 350 | I58: 350 | L58: 350 | O58: =SUM(tblExpenseCategory_05[[#This Row],[1 月]:[12 月]]) -> 1750 | P58: =tblExpenseCategory_05[[#This Row],[年]]/12 -> 146
B59: 药品 | C59: 250 | D59: 250 | E59: 250 | F59: 250 | G59: 250 | H59: 250 | I59: 250 | J59: 250 | K59: 250 | L59: 250 | M59: 250 | N59: 250 | O59: =SUM(tblExpenseCategory_05[[#This Row],[1 月]:[12 月]]) -> 3000 | P59: =tblExpenseCategory_05[[#This Row],[年]]/12 -> 250
B60: 其他 | E60: 1500 | K60: 1500 | O60: =SUM(tblExpenseCategory_05[[#This Row],[1 月]:[12 月]]) -> 3000 | P60: =tblExpenseCategory_05[[#This Row],[年]]/12 -> 250
B61: =UPPER(B57&" 总额") -> 健康 总额 | C61: =SUM(tblExpenseCategory_05[1 月]) -> 250 | D61: =SUM(tblExpenseCategory_05[2 月]) -> 600 | E61: =SUM(tblExpenseCategory_05[3 月]) -> 1750 | F61: =SUM(tblExpenseCategory_05[4 月]) -> 250 | G61: =SUM(tblExpenseCategory_05[5 月]) -> 600 | H61: =SUM(tblExpenseCategory_05[6 月]) -> 600 | I61: =SUM(tblExpenseCategory_05[7 月]) -> 600 | J61: =SUM(tblExpenseCategory_05[8 月]) -> 250 | K61: =SUM(tblExpenseCategory_05[9 月]) -> 1750 | L61: =SUM(tblExpenseCategory_05[10 月]) -> 600 | M61: =SUM(tblExpenseCategory_05[11 月]) -> 250 | N61: =SUM(tblExpenseCategory_05[12 月]) -> 250 | O61: =SUM(tblExpenseCategory_05[年]) -> 7750 | P61: =tblExpenseCategory_05[[#Totals],[年]]/12 -> 646
B64: 保险
B65: 汽车 | C65: 1500 | D65: 1500 | E65: 1500 | F65: 1500 | G65: 1500 | H65: 1500 | I65: 1500 | J65: 1500 | K65: 1500 | L65: 1500 | M65: 1500 | N65: 1500 | O65: =SUM(tblExpenseCategory_06[[#This Row],[1 月]:[12 月]]) -> 18000 | P65: =tblExpenseCategory_06[[#This Row],[年]]/12 -> 1500
B66: 健康 | C66: 6750 | D66: 6750 | E66: 6750 | F66: 6750 | G66: 6750 | H66: 6750 | I66: 6750 | J66: 6750 | K66: 6750 | L66: 6750 | M66: 6750 | N66: 6750 | O66: =SUM(tblExpenseCategory_06[[#This Row],[1 月]:[12 月]]) -> 81000 | P66: =tblExpenseCategory_06[[#This Row],[年]]/12 -> 6750
B67: 生活 | C67: 1500 | D67: 1500 | E67: 1500 | F67: 1500 | G67: 1500 | H67: 1500 | I67: 1500 | J67: 1500 | K67: 1500 | L67: 1500 | M67: 1500 | N67: 1500 | O67: =SUM(tblExpenseCategory_06[[#This Row],[1 月]:[12 月]]) -> 18000 | P67: =tblExpenseCategory_06[[#This Row],[年]]/12 -> 1500
B68: =UPPER(B64&" 总额") -> 保险 总额 | C68: =SUM(tblExpenseCategory_06[1 月]) -> 9750 | D68: =SUM(tblExpenseCategory_06[2 月]) -> 9750 | E68: =SUM(tblExpenseCategory_06[3 月]) -> 9750 | F68: =SUM(tblExpenseCategory_06[4 月]) -> 9750 | G68: =SUM(tblExpenseCategory_06[5 月]) -> 9750 | H68: =SUM(tblExpenseCategory_06[6 月]) -> 9750 | I68: =SUM(tblExpenseCategory_06[7 月]) -> 9750 | J68: =SUM(tblExpenseCategory_06[8 月]) -> 9750 | K68: =SUM(tblExpenseCategory_06[9 月]) -> 9750 | L68: =SUM(tblExpenseCategory_06[10 月]) -> 9750 | M68: =SUM(tblExpenseCategory_06[11 月]) -> 9750 | N68: =SUM(tblExpenseCategory_06[12 月]) -> 9750 | O68: =SUM(tblExpenseCategory_06[年]) -> 117000 | P68: =tblExpenseCategory_06[[#Totals],[年]]/12 -> 9750
B71: 教育
B72: 学费 | E72: 4000 | K72: 4000 | O72: =SUM(tblExpenseCategory_07[[#This Row],[1 月]:[12 月]]) -> 8000 | P72: =tblExpenseCategory_07[[#This Row],[年]]/12 -> 667
B73: 书籍 | E73: 2250 | K73: 2250 | O73: =SUM(tblExpenseCategory_07[[#This Row],[1 月]:[12 月]]) -> 4500 | P73: =tblExpenseCategory_07[[#This Row],[年]]/12 -> 375
B74: 其他 | O74: =SUM(tblExpenseCategory_07[[#This Row],[1 月]:[12 月]]) -> 0 | P74: =tblExpenseCategory_07[[#This Row],[年]]/12 -> 0
B75: =UPPER(B71&" 总额") -> 教育 总额 | C75: =SUM(tblExpenseCategory_07[1 月]) -> 0 | D75: =SUM(tblExpenseCategory_07[2 月]) -> 0 | E75: =SUM(tblExpenseCategory_07[3 月]) -> 6250 | F75: =SUM(tblExpenseCategory_07[4 月]) -> 0 | G75: =SUM(tblExpenseCategory_07[5 月]) -> 0 | H75: =SUM(tblExpenseCategory_07[6 月]) -> 0 | I75: =SUM(tblExpenseCategory_07[7 月]) -> 0 | J75: =SUM(tblExpenseCategory_07[8 月]) -> 0 | K75: =SUM(tblExpenseCategory_07[9 月]) -> 6250 | L75: =SUM(tblExpenseCategory_07[10 月]) -> 0 | M75: =SUM(tblExpenseCategory_07[11 月]) -> 0 | N75: =SUM(tblExpenseCategory_07[12 月]) -> 0 | O75: =SUM(tblExpenseCategory_07[年]) -> 12500 | P75: =tblExpenseCategory_07[[#Totals],[年]]/12 -> 1042
B78: 慈善
B79: 赠予的礼品 | D79: 1000 | H79: 1000 | L79: 1000 | O79: =SUM(tblExpenseCategory_08[[#This Row],[1 月]:[12 月]]) -> 3000 | P79: =tblExpenseCategory_08[[#This Row],[年]]/12 -> 250
B80: 慈善捐赠 | E80: 1000 | G80: 1000 | I80: 1000 | K80: 1000 | M80: 1000 | O80: =SUM(tblExpenseCategory_08[[#This Row],[1 月]:[12 月]]) -> 5000 | P80: =tblExpenseCategory_08[[#This Row],[年]]/12 -> 417
B81: 其他 | F81: 1000 | J81: 1000 | N81: 1000 | O81: =SUM(tblExpenseCategory_08[[#This Row],[1 月]:[12 月]]) -> 3000 | P81: =tblExpenseCategory_08[[#This Row],[年]]/12 -> 250
B82: =UPPER(B78&" 总额") -> 慈善 总额 | C82: =SUM(tblExpenseCategory_08[1 月]) -> 0 | D82: =SUM(tblExpenseCategory_08[2 月]) -> 1000 | E82: =SUM(tblExpenseCategory_08[3 月]) -> 1000 | F82: =SUM(tblExpenseCategory_08[4 月]) -> 1000 | G82: =SUM(tblExpenseCategory_08[5 月]) -> 1000 | H82: =SUM(tblExpenseCategory_08[6 月]) -> 1000 | I82: =SUM(tblExpenseCategory_08[7 月]) -> 1000 | J82: =SUM(tblExpenseCategory_08[8 月]) -> 1000 | K82: =SUM(tblExpenseCategory_08[9 月]) -> 1000 | L82: =SUM(tblExpenseCategory_08[10 月]) -> 1000 | M82: =SUM(tblExpenseCategory_08[11 月]) -> 1000 | N82: =SUM(tblExpenseCategory_08[12 月]) -> 1000 | O82: =SUM(tblExpenseCategory_08[年]) -> 11000 | P82: =tblExpenseCategory_08[[#Totals],[年]]/12 -> 917
B85: 储蓄
B86: 应急基金 | C86: 1000 | D86: 1000 | E86: 1000 | F86: 1000 | G86: 1000 | K86: 1000 | L86: 1000 | M86: 1000 | N86: 1000 | O86: =SUM(tblExpenseCategory_09[[#This Row],[1 月]:[12 月]]) -> 9000 | P86: =tblExpenseCategory_09[[#This Row],[年]]/12 -> 750
B87: 退休（401k，IRA） | C87: 5000 | D87: 5000 | E87: 5000 | F87: 5000 | G87: 5000 | H87: 5000 | I87: 5000 | J87: 5000 | K87: 5000 | L87: 5000 | M87: 5000 | N87: 5000 | O87: =SUM(tblExpenseCategory_09[[#This Row],[1 月]:[12 月]]) -> 60000 | P87: =tblExpenseCategory_09[[#This Row],[年]]/12 -> 5000
B88: 转帐储蓄 | C88: 2000 | D88: 2000 | E88: 2000 | F88: 2000 | G88: 2000 | K88: 2000 | L88: 2000 | M88: 2000 | N88: 2000 | O88: =SUM(tblExpenseCategory_09[[#This Row],[1 月]:[12 月]]) -> 18000 | P88: =tblExpenseCategory_09[[#This Row],[年]]/12 -> 1500
B89: =UPPER(B85&" 总额") -> 储蓄 总额 | C89: =SUM(tblExpenseCategory_09[1 月]) -> 8000 | D89: =SUM(tblExpenseCategory_09[2 月]) -> 8000 | E89: =SUM(tblExpenseCategory_09[3 月]) -> 8000 | F89: =SUM(tblExpenseCategory_09[4 月]) -> 8000 | G89: =SUM(tblExpenseCategory_09[5 月]) -> 8000 | H89: =SUM(tblExpenseCategory_09[6 月]) -> 5000 | I89: =SUM(tblExpenseCategory_09[7 月]) -> 5000 | J89: =SUM(tblExpenseCategory_09[8 月]) -> 5000 | K89: =SUM(tblExpenseCategory_09[9 月]) -> 8000 | L89: =SUM(tblExpenseCategory_09[10 月]) -> 8000 | M89: =SUM(tblExpenseCategory_09[11 月]) -> 8000 | N89: =SUM(tblExpenseCategory_09[12 月]) -> 8000 | O89: =SUM(tblExpenseCategory_09[年]) -> 87000 | P89: =tblExpenseCategory_09[[#Totals],[年]]/12 -> 7250
B92: 债务
B93: 信用卡 1 | C93: 1450 | D93: 1450 | E93: 1450 | F93: 1450 | G93: 1450 | H93: 1450 | I93: 1450 | J93: 1450 | K93: 1450 | L93: 1450 | M93: 1450 | N93: 1450 | O93: =SUM(tblExpenseCategory_10[[#This Row],[1 月]:[12 月]]) -> 17400 | P93: =tblExpenseCategory_10[[#This Row],[年]]/12 -> 1450
B94: 联邦税 | C94: 4500 | F94: 4500 | I94: 4500 | L94: 4500 | O94: =SUM(tblExpenseCategory_10[[#This Row],[1 月]:[12 月]]) -> 18000 | P94: =tblExpenseCategory_10[[#This Row],[年]]/12 -> 1500
B95: 助学贷款 | C95: 550 | D95: 550 | E95: 550 | F95: 550 | G95: 550 | H95: 550 | I95: 550 | J95: 550 | K95: 550 | L95: 550 | M95: 550 | N95: 550 | O95: =SUM(tblExpenseCategory_10[[#This Row],[1 月]:[12 月]]) -> 6600 | P95: =tblExpenseCategory_10[[#This Row],[年]]/12 -> 550
B96: =UPPER(B92&" 总额") -> 债务 总额 | C96: =SUM(tblExpenseCategory_10[1 月]) -> 6500 | D96: =SUM(tblExpenseCategory_10[2 月]) -> 2000 | E96: =SUM(tblExpenseCategory_10[3 月]) -> 2000 | F96: =SUM(tblExpenseCategory_10[4 月]) -> 6500 | G96: =SUM(tblExpenseCategory_10[5 月]) -> 2000 | H96: =SUM(tblExpenseCategory_10[6 月]) -> 2000 | I96: =SUM(tblExpenseCategory_10[7 月]) -> 6500 | J96: =SUM(tblExpenseCategory_10[8 月]) -> 2000 | K96: =SUM(tblExpenseCategory_10[9 月]) -> 2000 | L96: =SUM(tblExpenseCategory_10[10 月]) -> 6500 | M96: =SUM(tblExpenseCategory_10[11 月]) -> 2000 | N96: =SUM(tblExpenseCategory_10[12 月]) -> 2000 | O96: =SUM(tblExpenseCategory_10[年]) -> 42000 | P96: =tblExpenseCategory_10[[#Totals],[年]]/12 -> 3500
O100: =SUM(tblExpenseCategory_11[[#This Row],[1 月]:[12 月]]) -> 0 | P100: =tblExpenseCategory_11[[#This Row],[年]]/12 -> 0
O101: =SUM(tblExpenseCategory_11[[#This Row],[1 月]:[12 月]]) -> 0 | P101: =tblExpenseCategory_11[[#This Row],[年]]/12 -> 0
O102: =SUM(tblExpenseCategory_11[[#This Row],[1 月]:[12 月]]) -> 0 | P102: =tblExpenseCategory_11[[#This Row],[年]]/12 -> 0
B103: =UPPER(B99&" 总额") -> 总额 | C103: =SUM(tblExpenseCategory_11[1 月]) -> 0 | D103: =SUM(tblExpenseCategory_11[2 月]) -> 0 | E103: =SUM(tblExpenseCategory_11[3 月]) -> 0 | F103: =SUM(tblExpenseCategory_11[4 月]) -> 0 | G103: =SUM(tblExpenseCategory_11[5 月]) -> 0 | H103: =SUM(tblExpenseCategory_11[6 月]) -> 0 | I103: =SUM(tblExpenseCategory_11[7 月]) -> 0 | J103: =SUM(tblExpenseCategory_11[8 月]) -> 0 | K103: =SUM(tblExpenseCategory_11[9 月]) -> 0 | L103: =SUM(tblExpenseCategory_11[10 月]) -> 0 | M103: =SUM(tblExpenseCategory_11[11 月]) -> 0 | N103: =SUM(tblExpenseCategory_11[12 月]) -> 0 | O103: =SUM(tblExpenseCategory_11[年]) -> 0 | P103: =tblExpenseCategory_11[[#Totals],[年]]/12 -> 0
O107: =SUM(tblExpenseCategory_12[[#This Row],[1 月]:[12 月]]) -> 0 | P107: =tblExpenseCategory_12[[#This Row],[年]]/12 -> 0
O108: =SUM(tblExpenseCategory_12[[#This Row],[1 月]:[12 月]]) -> 0 | P108: =tblExpenseCategory_12[[#This Row],[年]]/12 -> 0
O109: =SUM(tblExpenseCategory_12[[#This Row],[1 月]:[12 月]]) -> 0 | P109: =tblExpenseCategory_12[[#This Row],[年]]/12 -> 0
B110: =UPPER(B106&" 总额") -> 总额 | C110: =SUM(tblExpenseCategory_12[1 月]) -> 0 | D110: =SUM(tblExpenseCategory_12[2 月]) -> 0 | E110: =SUM(tblExpenseCategory_12[3 月]) -> 0 | F110: =SUM(tblExpenseCategory_12[4 月]) -> 0 | G110: =SUM(tblExpenseCategory_12[5 月]) -> 0 | H110: =SUM(tblExpenseCategory_12[6 月]) -> 0 | I110: =SUM(tblExpenseCategory_12[7 月]) -> 0 | J110: =SUM(tblExpenseCategory_12[8 月]) -> 0 | K110: =SUM(tblExpenseCategory_12[9 月]) -> 0 | L110: =SUM(tblExpenseCategory_12[10 月]) -> 0 | M110: =SUM(tblExpenseCategory_12[11 月]) -> 0 | N110: =SUM(tblExpenseCategory_12[12 月]) -> 0 | O110: =SUM(tblExpenseCategory_12[年]) -> 0 | P110: =tblExpenseCategory_12[[#Totals],[年]]/12 -> 0
O114: =SUM(tblExpenseCategory_13[[#This Row],[1 月]:[12 月]]) -> 0 | P114: =tblExpenseCategory_13[[#This Row],[年]]/12 -> 0
O115: =SUM(tblExpenseCategory_13[[#This Row],[1 月]:[12 月]]) -> 0 | P115: =tblExpenseCategory_13[[#This Row],[年]]/12 -> 0
O116: =SUM(tblExpenseCategory_13[[#This Row],[1 月]:[12 月]]) -> 0 | P116: =tblExpenseCategory_13[[#This Row],[年]]/12 -> 0
B117: =UPPER(B113&" 总额") -> 总额 | C117: =SUM(tblExpenseCategory_13[1 月]) -> 0 | D117: =SUM(tblExpenseCategory_13[2 月]) -> 0 | E117: =SUM(tblExpenseCategory_13[3 月]) -> 0 | F117: =SUM(tblExpenseCategory_13[4 月]) -> 0 | G117: =SUM(tblExpenseCategory_13[5 月]) -> 0 | H117: =SUM(tblExpenseCategory_13[6 月]) -> 0 | I117: =SUM(tblExpenseCategory_13[7 月]) -> 0 | J117: =SUM(tblExpenseCategory_13[8 月]) -> 0 | K117: =SUM(tblExpenseCategory_13[9 月]) -> 0 | L117: =SUM(tblExpenseCategory_13[10 月]) -> 0 | M117: =SUM(tblExpenseCategory_13[11 月]) -> 0 | N117: =SUM(tblExpenseCategory_13[12 月]) -> 0 | O117: =SUM(tblExpenseCategory_13[年]) -> 0 | P117: =tblExpenseCategory_13[[#Totals],[年]]/12 -> 0
O121: =SUM(tblExpenseCategory_14[[#This Row],[1 月]:[12 月]]) -> 0 | P121: =tblExpenseCategory_14[[#This Row],[年]]/12 -> 0
O122: =SUM(tblExpenseCategory_14[[#This Row],[1 月]:[12 月]]) -> 0 | P122: =tblExpenseCategory_14[[#This Row],[年]]/12 -> 0
O123: =SUM(tblExpenseCategory_14[[#This Row],[1 月]:[12 月]]) -> 0 | P123: =tblExpenseCategory_14[[#This Row],[年]]/12 -> 0
B124: =UPPER(B120&" 总额") -> 总额 | C124: =SUM(tblExpenseCategory_14[1 月]) -> 0 | D124: =SUM(tblExpenseCategory_14[2 月]) -> 0 | E124: =SUM(tblExpenseCategory_14[3 月]) -> 0 | F124: =SUM(tblExpenseCategory_14[4 月]) -> 0 | G124: =SUM(tblExpenseCategory_14[5 月]) -> 0 | H124: =SUM(tblExpenseCategory_14[6 月]) -> 0 | I124: =SUM(tblExpenseCategory_14[7 月]) -> 0 | J124: =SUM(tblExpenseCategory_14[8 月]) -> 0 | K124: =SUM(tblExpenseCategory_14[9 月]) -> 0 | L124: =SUM(tblExpenseCategory_14[10 月]) -> 0 | M124: =SUM(tblExpenseCategory_14[11 月]) -> 0 | N124: =SUM(tblExpenseCategory_14[12 月]) -> 0 | O124: =SUM(tblExpenseCategory_14[年]) -> 0 | P124: =tblExpenseCategory_14[[#Totals],[年]]/12 -> 0
O128: =SUM(tblExpenseCategory_15[[#This Row],[1 月]:[12 月]]) -> 0 | P128: =tblExpenseCategory_15[[#This Row],[年]]/12 -> 0
O129: =SUM(tblExpenseCategory_15[[#This Row],[1 月]:[12 月]]) -> 0 | P129: =tblExpenseCategory_15[[#This Row],[年]]/12 -> 0
O130: =SUM(tblExpenseCategory_15[[#This Row],[1 月]:[12 月]]) -> 0 | P130: =tblExpenseCategory_15[[#This Row],[年]]/12 -> 0
B131: =UPPER(B127&" 总额") -> 总额 | C131: =SUM(tblExpenseCategory_15[1 月]) -> 0 | D131: =SUM(tblExpenseCategory_15[2 月]) -> 0 | E131: =SUM(tblExpenseCategory_15[3 月]) -> 0 | F131: =SUM(tblExpenseCategory_15[4 月]) -> 0 | G131: =SUM(tblExpenseCategory_15[5 月]) -> 0 | H131: =SUM(tblExpenseCategory_15[6 月]) -> 0 | I131: =SUM(tblExpenseCategory_15[7 月]) -> 0 | J131: =SUM(tblExpenseCategory_15[8 月]) -> 0 | K131: =SUM(tblExpenseCategory_15[9 月]) -> 0 | L131: =SUM(tblExpenseCategory_15[10 月]) -> 0 | M131: =SUM(tblExpenseCategory_15[11 月]) -> 0 | N131: =SUM(tblExpenseCategory_15[12 月]) -> 0 | O131: =SUM(tblExpenseCategory_15[年]) -> 0 | P131: =tblExpenseCategory_15[[#Totals],[年]]/12 -> 0

Sheet 设置
B1: 孙荷佑一家 2012 年
B2: 收入 | D2: 支出
B3: 工资和小费
B4: 利息收入 | D4: 住宅 | F4: 住宅 | H4: 日常生活 | J4: 孩子
B5: 红利 | D5: 日常生活 | F5: 押金/租金 | H5: 日常生活 | J5: 医疗
B6: 收到的礼品 | D6: 孩子 | F6: 电费 | H6: 日用杂货 | J6: 服饰
B7: 还款/退款 | D7: 交通 | F7: 燃气/燃油 | H7: 个人用品 | J7: 学费
B8: 从储蓄转帐 | D8: 健康 | F8: 水费/污水处理费 | H8: 服饰 | J8: 学校午餐
B9: 其他 | D9: 保险 | F9: 电话 | H9: 清洁服务 | J9: 学校用品
D10: 教育 | F10: 有线/卫星电视 | H10: 在外就餐 | J10: 婴儿照顾
D11: 慈善 | F11: 网费 | H11: 干洗 | J11: 玩具/游戏
D12: 储蓄 | F12: 家电 | H12: 美容/理发 | J12: 其他
D13: 债务 | F13: 草坪/花园
D14: 娱乐 | F14: 住宅用品
D15: 宠物 | F15: 维修
D16: 订阅 | F16: 改良
D17: 假期 | F17: 其他
D18: 杂项
F20: 交通 | H20: 健康 | J20: 保险
F21: 交通工具费用 | H21: 医生/牙医 | J21: 汽车
F22: 燃料 | H22: 药品 | J22: 健康
F23: 公共汽车/出租车/火车票 | H23: 健康俱乐部会费 | J23: 住宅/租赁
F24: 修理 | H24: 紧急 | J24: 生活
F25: 登记/许可证 | H25: 其他 | J25: 其他
F26: 其他
F29: 教育 | H29: 慈善 | J29: 储蓄
F30: 学费 | H30: 赠予的礼品 | J30: 应急基金
F31: 书籍 | H31: 慈善捐赠 | J31: 转帐储蓄
F32: 音乐课 | H32: 宗教捐赠 | J32: 退休（401k，ira）
F33: 其他 | H33: 其他 | J33: 投资
J34: 大学
J35: 其他
F38: 债务 | H38: 娱乐 | J38: 宠物
F39: 助学贷款 | H39: 录像/DVD | J39: 食品
F40: 其他贷款 | H40: 音乐 | J40: 医疗
F41: 信用卡 1 | H41: 游戏 | J41: 玩具/用品
F42: 信用卡 2 | H42: 租赁 | J42: 其他
F43: 信用卡 3 | H43: 电影/戏剧
F44: 离婚赡养费/子女抚养费 | H44: 音乐会/演奏
F45: 联邦税 | H45: 书籍
F46: 物业税 | H46: 业余爱好
F47: 省市自治区/地方税 | H47: 胶卷/照片
F48: 管理费 | H48: 运动
F49: 法律费用 | H49: 户外消遣
F50: 其他 | H50: 玩具/小玩意
H51: 其他
F53: 订阅 | H53: 假期 | J53: 杂项
F54: 报纸 | H54: 旅游 | J54: 银行手续费
F55: 杂志 | H55: 住宿 | J55: 邮资
F56: 会费 | H56: 食品 | J56: 其他
F57: 俱乐部会员 | H57: 租车
F58: 其他 | H58: 娱乐
H59: 其他

Sheet 图表数据 (hidden)
B1: *** 此工作表应保持为隐藏状态 ***
B4: 期间 | C4: 3
C6: 1 月 | D6: 2 月 | E6: 3 月 | F6: 4 月 | G6: 5 月 | H6: 6 月 | I6: 7 月 | J6: 8 月 | K6: 9 月 | L6: 10 月 | M6: 11 月 | N6: 12 月 | O6: 年 | P6: 平均
B7: =LOWER(预算!#REF!) ->  | C7: =SUM(tblExpenseCategory_15[1 月]) -> 0 | D7: =SUM(tblExpenseCategory_15[2 月]) -> 0 | E7: =SUM(tblExpenseCategory_15[3 月]) -> 0 | F7: =SUM(tblExpenseCategory_15[4 月]) -> 0 | G7: =SUM(tblExpenseCategory_15[5 月]) -> 0 | H7: =SUM(tblExpenseCategory_15[6 月]) -> 0 | I7: =SUM(tblExpenseCategory_15[7 月]) -> 0 | J7: =SUM(tblExpenseCategory_15[8 月]) -> 0 | K7: =SUM(tblExpenseCategory_15[9 月]) -> 0 | L7: =SUM(tblExpenseCategory_15[10 月]) -> 0 | M7: =SUM(tblExpenseCategory_15[11 月]) -> 0 | N7: =SUM(tblExpenseCategory_15[12 月]) -> 0 | O7: =SUM(tblExpenseCategory_15[年]) -> 0 | P7: =SUM(tblExpenseCategory_15[平均]) -> 0
B8: =LOWER(预算!B120) ->  | C8: =SUM(tblExpenseCategory_14[1 月]) -> 0 | D8: =SUM(tblExpenseCategory_14[2 月]) -> 0 | E8: =SUM(tblExpenseCategory_14[3 月]) -> 0 | F8: =SUM(tblExpenseCategory_14[4 月]) -> 0 | G8: =SUM(tblExpenseCategory_14[5 月]) -> 0 | H8: =SUM(tblExpenseCategory_14[6 月]) -> 0 | I8: =SUM(tblExpenseCategory_14[7 月]) -> 0 | J8: =SUM(tblExpenseCategory_14[8 月]) -> 0 | K8: =SUM(tblExpenseCategory_14[9 月]) -> 0 | L8: =SUM(tblExpenseCategory_14[10 月]) -> 0 | M8: =SUM(tblExpenseCategory_14[11 月]) -> 0 | N8: =SUM(tblExpenseCategory_14[12 月]) -> 0 | O8: =SUM(tblExpenseCategory_14[年]) -> 0 | P8: =SUM(tblExpenseCategory_14[平均]) -> 0
B9: =LOWER(预算!B113) ->  | C9: =SUM(tblExpenseCategory_13[1 月]) -> 0 | D9: =SUM(tblExpenseCategory_13[2 月]) -> 0 | E9: =SUM(tblExpenseCategory_13[3 月]) -> 0 | F9: =SUM(tblExpenseCategory_13[4 月]) -> 0 | G9: =SUM(tblExpenseCategory_13[5 月]) -> 0 | H9: =SUM(tblExpenseCategory_13[6 月]) -> 0 | I9: =SUM(tblExpenseCategory_13[7 月]) -> 0 | J9: =SUM(tblExpenseCategory_13[8 月]) -> 0 | K9: =SUM(tblExpenseCategory_13[9 月]) -> 0 | L9: =SUM(tblExpenseCategory_13[10 月]) -> 0 | M9: =SUM(tblExpenseCategory_13[11 月]) -> 0 | N9: =SUM(tblExpenseCategory_13[12 月]) -> 0 | O9: =SUM(tblExpenseCategory_13[年]) -> 0 | P9: =SUM(tblExpenseCategory_13[平均]) -> 0
B10: =LOWER(预算!B106) ->  | C10: =SUM(tblExpenseCategory_12[1 月]) -> 0 | D10: =SUM(tblExpenseCategory_12[2 月]) -> 0 | E10: =SUM(tblExpenseCategory_12[3 月]) -> 0 | F10: =SUM(tblExpenseCategory_12[4 月]) -> 0 | G10: =SUM(tblExpenseCategory_12[5 月]) -> 0 | H10: =SUM(tblExpenseCategory_12[6 月]) -> 0 | I10: =SUM(tblExpenseCategory_12[7 月]) -> 0 | J10: =SUM(tblExpenseCategory_12[8 月]) -> 0 | K10: =SUM(tblExpenseCategory_12[9 月]) -> 0 | L10: =SUM(tblExpenseCategory_12[10 月]) -> 0 | M10: =SUM(tblExpenseCategory_12[11 月]) -> 0 | N10: =SUM(tblExpenseCategory_12[12 月]) -> 0 | O10: =SUM(tblExpenseCategory_12[年]) -> 0 | P10: =SUM(tblExpenseCategory_12[平均]) -> 0
B11: =LOWER(预算!B99) ->  | C11: =SUM(tblExpenseCategory_11[1 月]) -> 0 | D11: =SUM(tblExpenseCategory_11[2 月]) -> 0 | E11: =SUM(tblExpenseCategory_11[3 月]) -> 0 | F11: =SUM(tblExpenseCategory_11[4 月]) -> 0 | G11: =SUM(tblExpenseCategory_11[5 月]) -> 0 | H11: =SUM(tblExpenseCategory_11[6 月]) -> 0 | I11: =SUM(tblExpenseCategory_11[7 月]) -> 0 | J11: =SUM(tblExpenseCategory_11[8 月]) -> 0 | K11: =SUM(tblExpenseCategory_11[9 月]) -> 0 | L11: =SUM(tblExpenseCategory_11[10 月]) -> 0 | M11: =SUM(tblExpenseCategory_11[11 月]) -> 0 | N11: =SUM(tblExpenseCategory_11[12 月]) -> 0 | O11: =SUM(tblExpenseCategory_11[年]) -> 0 | P11: =SUM(tblExpenseCategory_11[平均]) -> 0
B12: =LOWER(预算!B92) -> 债务 | C12: =SUM(tblExpenseCategory_10[1 月]) -> 6,500 | D12: =SUM(tblExpenseCategory_10[2 月]) -> 2,000 | E12: =SUM(tblExpenseCategory_10[3 月]) -> 2,000 | F12: =SUM(tblExpenseCategory_10[4 月]) -> 6,500 | G12: =SUM(tblExpenseCategory_10[5 月]) -> 2,000 | H12: =SUM(tblExpenseCategory_10[6 月]) -> 2,000 | I12: =SUM(tblExpenseCategory_10[7 月]) -> 6,500 | J12: =SUM(tblExpenseCategory_10[8 月]) -> 2,000 | K12: =SUM(tblExpenseCategory_10[9 月]) -> 2,000 | L12: =SUM(tblExpenseCategory_10[10 月]) -> 6,500 | M12: =SUM(tblExpenseCategory_10[11 月]) -> 2,000 | N12: =SUM(tblExpenseCategory_10[12 月]) -> 2,000 | O12: =SUM(tblExpenseCategory_10[年]) -> 42,000 | P12: =SUM(tblExpenseCategory_10[平均]) -> 3,500
B13: =LOWER(预算!B85) -> 储蓄 | C13: =SUM(tblExpenseCategory_09[1 月]) -> 8,000 | D13: =SUM(tblExpenseCategory_09[2 月]) -> 8,000 | E13: =SUM(tblExpenseCategory_09[3 月]) -> 8,000 | F13: =SUM(tblExpenseCategory_09[4 月]) -> 8,000 | G13: =SUM(tblExpenseCategory_09[5 月]) -> 8,000 | H13: =SUM(tblExpenseCategory_09[6 月]) -> 5,000 | I13: =SUM(tblExpenseCategory_09[7 月]) -> 5,000 | J13: =SUM(tblExpenseCategory_09[8 月]) -> 5,000 | K13: =SUM(tblExpenseCategory_09[9 月]) -> 8,000 | L13: =SUM(tblExpenseCategory_09[10 月]) -> 8,000 | M13: =SUM(tblExpenseCategory_09[11 月]) -> 8,000 | N13: =SUM(tblExpenseCategory_09[12 月]) -> 8,000 | O13: =SUM(tblExpenseCategory_09[年]) -> 87,000 | P13: =SUM(tblExpenseCategory_09[平均]) -> 7,250
B14: =LOWER(预算!B78) -> 慈善 | C14: =SUM(tblExpenseCategory_08[1 月]) -> 0 | D14: =SUM(tblExpenseCategory_08[2 月]) -> 1,000 | E14: =SUM(tblExpenseCategory_08[3 月]) -> 1,000 | F14: =SUM(tblExpenseCategory_08[4 月]) -> 1,000 | G14: =SUM(tblExpenseCategory_08[5 月]) -> 1,000 | H14: =SUM(tblExpenseCategory_08[6 月]) -> 1,000 | I14: =SUM(tblExpenseCategory_08[7 月]) -> 1,000 | J14: =SUM(tblExpenseCategory_08[8 月]) -> 1,000 | K14: =SUM(tblExpenseCategory_08[9 月]) -> 1,000 | L14: =SUM(tblExpenseCategory_08[10 月]) -> 1,000 | M14: =SUM(tblExpenseCategory_08[11 月]) -> 1,000 | N14: =SUM(tblExpenseCategory_08[12 月]) -> 1,000 | O14: =SUM(tblExpenseCategory_08[年]) -> 11,000 | P14: =SUM(tblExpenseCategory_08[平均]) -> 917
B15: =LOWER(预算!B71) -> 教育 | C15: =SUM(tblExpenseCategory_07[1 月]) -> 0 | D15: =SUM(tblExpenseCategory_07[2 月]) -> 0 | E15: =SUM(tblExpenseCategory_07[3 月]) -> 6,250 | F15: =SUM(tblExpenseCategory_07[4 月]) -> 0 | G15: =SUM(tblExpenseCategory_07[5 月]) -> 0 | H15: =SUM(tblExpenseCategory_07[6 月]) -> 0 | I15: =SUM(tblExpenseCategory_07[7 月]) -> 0 | J15: =SUM(tblExpenseCategory_07[8 月]) -> 0 | K15: =SUM(tblExpenseCategory_07[9 月]) -> 6,250 | L15: =SUM(tblExpenseCategory_07[10 月]) -> 0 | M15: =SUM(tblExpenseCategory_07[11 月]) -> 0 | N15: =SUM(tblExpenseCategory_07[12 月]) -> 0 | O15: =SUM(tblExpenseCategory_07[年]) -> 12,500 | P15: =SUM(tblExpenseCategory_07[平均]) -> 1,042
B16: =LOWER(预算!B64) -> 保险 | C16: =SUM(tblExpenseCategory_06[1 月]) -> 9,750 | D16: =SUM(tblExpenseCategory_06[2 月]) -> 9,750 | E16: =SUM(tblExpenseCategory_06[3 月]) -> 9,750 | F16: =SUM(tblExpenseCategory_06[4 月]) -> 9,750 | G16: =SUM(tblExpenseCategory_06[5 月]) -> 9,750 | H16: =SUM(tblExpenseCategory_06[6 月]) -> 9,750 | I16: =SUM(tblExpenseCategory_06[7 月]) -> 9,750 | J16: =SUM(tblExpenseCategory_06[8 月]) -> 9,750 | K16: =SUM(tblExpenseCategory_06[9 月]) -> 9,750 | L16: =SUM(tblExpenseCategory_06[10 月]) -> 9,750 | M16: =SUM(tblExpenseCategory_06[11 月]) -> 9,750 | N16: =SUM(tblExpenseCategory_06[12 月]) -> 9,750 | O16: =SUM(tblExpenseCategory_06[年]) -> 117,000 | P16: =SUM(tblExpenseCategory_06[平均]) -> 9,750
B17: =LOWER(预算!B57) -> 健康 | C17: =SUM(tblExpenseCategory_05[1 月]) -> 250 | D17: =SUM(tblExpenseCategory_05[2 月]) -> 600 | E17: =SUM(tblExpenseCategory_05[3 月]) -> 1,750 | F17: =SUM(tblExpenseCategory_05[4 月]) -> 250 | G17: =SUM(tblExpenseCategory_05[5 月]) -> 600 | H17: =SUM(tblExpenseCategory_05[6 月]) -> 600 | I17: =SUM(tblExpenseCategory_05[7 月]) -> 600 | J17: =SUM(tblExpenseCategory_05[8 月]) -> 250 | K17: =SUM(tblExpenseCategory_05[9 月]) -> 1,750 | L17: =SUM(tblExpenseCategory_05[10 月]) -> 600 | M17: =SUM(tblExpenseCategory_05[11 月]) -> 250 | N17: =SUM(tblExpenseCategory_05[12 月]) -> 250 | O17: =SUM(tblExpenseCategory_05[年]) -> 7,750 | P17: =SUM(tblExpenseCategory_05[平均]) -> 646
B18: =LOWER(预算!B48) -> 交通 | C18: =SUM(tblExpenseCategory_04[1 月]) -> 11,100 | D18: =SUM(tblExpenseCategory_04[2 月]) -> 10,250 | E18: =SUM(tblExpenseCategory_04[3 月]) -> 9,250 | F18: =SUM(tblExpenseCategory_04[4 月]) -> 10,250 | G18: =SUM(tblExpenseCategory_04[5 月]) -> 13,250 | H18: =SUM(tblExpenseCategory_04[6 月]) -> 12,000 | I18: =SUM(tblExpenseCategory_04[7 月]) -> 11,000 | J18: =SUM(tblExpenseCategory_04[8 月]) -> 12,000 | K18: =SUM(tblExpenseCategory_04[9 月]) -> 11,500 | L18: =SUM(tblExpenseCategory_04[10 月]) -> 10,250 | M18: =SUM(tblExpenseCategory_04[11 月]) -> 9,250 | N18: =SUM(tblExpenseCategory_04[12 月]) -> 9,250 | O18: =SUM(tblExpenseCategory_04[年]) -> 129,350 | P18: =SUM(tblExpenseCategory_04[平均]) -> 10,779
B19: =LOWER(预算!B39) -> 孩子 | C19: =SUM(tblExpenseCategory_03[1 月]) -> 23,730 | D19: =SUM(tblExpenseCategory_03[2 月]) -> 5,000 | E19: =SUM(tblExpenseCategory_03[3 月]) -> 3,500 | F19: =SUM(tblExpenseCategory_03[4 月]) -> 2,500 | G19: =SUM(tblExpenseCategory_03[5 月]) -> 3,500 | H19: =SUM(tblExpenseCategory_03[6 月]) -> 4,500 | I19: =SUM(tblExpenseCategory_03[7 月]) -> 2,000 | J19: =SUM(tblExpenseCategory_03[8 月]) -> 5,450 | K19: =SUM(tblExpenseCategory_03[9 月]) -> 3,500 | L19: =SUM(tblExpenseCategory_03[10 月]) -> 3,500 | M19: =SUM(tblExpenseCategory_03[11 月]) -> 2,500 | N19: =SUM(tblExpenseCategory_03[12 月]) -> 3,500 | O19: =SUM(tblExpenseCategory_03[年]) -> 63,180 | P19: =SUM(tblExpenseCategory_03[平均]) -> 5,265
B20: =LOWER(预算!B30) -> 日常生活 | C20: =SUM(tblExpenseCategory_02[1 月]) -> 7,950 | D20: =SUM(tblExpenseCategory_02[2 月]) -> 3,750 | E20: =SUM(tblExpenseCategory_02[3 月]) -> 5,500 | F20: =SUM(tblExpenseCategory_02[4 月]) -> 8,250 | G20: =SUM(tblExpenseCategory_02[5 月]) -> 5,000 | H20: =SUM(tblExpenseCategory_02[6 月]) -> 4,500 | I20: =SUM(tblExpenseCategory_02[7 月]) -> 8,750 | J20: =SUM(tblExpenseCategory_02[8 月]) -> 4,750 | K20: =SUM(tblExpenseCategory_02[9 月]) -> 4,000 | L20: =SUM(tblExpenseCategory_02[10 月]) -> 8,250 | M20: =SUM(tblExpenseCategory_02[11 月]) -> 5,750 | N20: =SUM(tblExpenseCategory_02[12 月]) -> 3,750 | O20: =SUM(tblExpenseCategory_02[年]) -> 70,200 | P20: =SUM(tblExpenseCategory_02[平均]) -> 5,850
B21: =LOWER(预算!B21) -> 住宅 | C21: =SUM(tblExpenseCategory_01[1 月]) -> 12,080 | D21: =SUM(tblExpenseCategory_01[2 月]) -> 12,080 | E21: =SUM(tblExpenseCategory_01[3 月]) -> 12,330 | F21: =SUM(tblExpenseCategory_01[4 月]) -> 12,080 | G21: =SUM(tblExpenseCategory_01[5 月]) -> 11,580 | H21: =SUM(tblExpenseCategory_01[6 月]) -> 11,830 | I21: =SUM(tblExpenseCategory_01[7 月]) -> 12,830 | J21: =SUM(tblExpenseCategory_01[8 月]) -> 13,330 | K21: =SUM(tblExpenseCategory_01[9 月]) -> 12,080 | L21: =SUM(tblExpenseCategory_01[10 月]) -> 11,580 | M21: =SUM(tblExpenseCategory_01[11 月]) -> 12,080 | N21: =SUM(tblExpenseCategory_01[12 月]) -> 12,080 | O21: =SUM(tblExpenseCategory_01[年]) -> 145,960 | P21: =SUM(tblExpenseCategory_01[平均]) -> 12,163
B26: 累计现金流 | C26: =SUM(预算!$C$8:C$8) -> -37,140 | D26: =SUM(预算!$C$8:D$8) -> 760 | E26: =SUM(预算!$C$8:E$8) -> -18,570 | F26: =SUM(预算!$C$8:F$8) -> -36,700 | G26: =SUM(预算!$C$8:G$8) -> -1,380 | H26: =SUM(预算!$C$8:H$8) -> -37,310 | I26: =SUM(预算!$C$8:I$8) -> -79,740 | J26: =SUM(预算!$C$8:J$8) -> -68,270 | K26: =SUM(预算!$C$8:K$8) -> -88,100 | L26: =SUM(预算!$C$8:L$8) -> -107,530 | M26: =SUM(预算!$C$8:M$8) -> -68,110 | N26: =SUM(预算!$C$8:N$8) -> -77,690 | O26: =SUM(预算!$C$8:O$8) -> -155,380
B28: 年正现金流 | C28: =IF(预算!C$8<0,NA(),IF(period+2<>COLUMN(预算!C$8),NA(),预算!C$8)) ->  | D28: =IF(预算!D$8<0,NA(),IF(period+2<>COLUMN(预算!D$8),NA(),预算!D$8)) ->  | E28: =IF(预算!E$8<0,NA(),IF(period+2<>COLUMN(预算!E$8),NA(),预算!E$8)) ->  | F28: =IF(预算!F$8<0,NA(),IF(period+2<>COLUMN(预算!F$8),NA(),预算!F$8)) ->  | G28: =IF(预算!G$8<0,NA(),IF(period+2<>COLUMN(预算!G$8),NA(),预算!G$8)) ->  | H28: =IF(预算!H$8<0,NA(),IF(period+2<>COLUMN(预算!H$8),NA(),预算!H$8)) ->  | I28: =IF(预算!I$8<0,NA(),IF(period+2<>COLUMN(预算!I$8),NA(),预算!I$8)) ->  | J28: =IF(预算!J$8<0,NA(),IF(period+2<>COLUMN(预算!J$8),NA(),预算!J$8)) ->  | K28: =IF(预算!K$8<0,NA(),IF(period+2<>COLUMN(预算!K$8),NA(),预算!K$8)) ->  | L28: =IF(预算!L$8<0,NA(),IF(period+2<>COLUMN(预算!L$8),NA(),预算!L$8)) ->  | M28: =IF(预算!M$8<0,NA(),IF(period+2<>COLUMN(预算!M$8),NA(),预算!M$8)) ->  | N28: =IF(预算!N$8<0,NA(),IF(period+2<>COLUMN(预算!N$8),NA(),预算!N$8)) ->  | O28: =IF(预算!O$8<0,NA(),IF(period+2<>COLUMN(预算!O$8),NA(),预算!O$8)) -> 
B29: 年负现金流 | C29: =IF(预算!C$8>=0,NA(),IF(period+2<>COLUMN(预算!C$8),NA(),预算!C$8)) ->  | D29: =IF(预算!D$8>=0,NA(),IF(period+2<>COLUMN(预算!D$8),NA(),预算!D$8)) ->  | E29: =IF(预算!E$8>=0,NA(),IF(period+2<>COLUMN(预算!E$8),NA(),预算!E$8)) -> -19,330 | F29: =IF(预算!F$8>=0,NA(),IF(period+2<>COLUMN(预算!F$8),NA(),预算!F$8)) ->  | G29: =IF(预算!G$8>=0,NA(),IF(period+2<>COLUMN(预算!G$8),NA(),预算!G$8)) ->  | H29: =IF(预算!H$8>=0,NA(),IF(period+2<>COLUMN(预算!H$8),NA(),预算!H$8)) ->  | I29: =IF(预算!I$8>=0,NA(),IF(period+2<>COLUMN(预算!I$8),NA(),预算!I$8)) ->  | J29: =IF(预算!J$8>=0,NA(),IF(period+2<>COLUMN(预算!J$8),NA(),预算!J$8)) ->  | K29: =IF(预算!K$8>=0,NA(),IF(period+2<>COLUMN(预算!K$8),NA(),预算!K$8)) ->  | L29: =IF(预算!L$8>=0,NA(),IF(period+2<>COLUMN(预算!L$8),NA(),预算!L$8)) ->  | M29: =IF(预算!M$8>=0,NA(),IF(period+2<>COLUMN(预算!M$8),NA(),预算!M$8)) ->  | N29: =IF(预算!N$8>=0,NA(),IF(period+2<>COLUMN(预算!N$8),NA(),预算!N$8)) ->  | O29: =IF(预算!O$8>=0,NA(),IF(period+2<>COLUMN(预算!O$8),NA(),预算!O$8)) -> 
B37: =LOWER(display_long_period) -> 3 月
B38: =display_long_period & "收入" -> 3 月收入 | C38: =INDEX(预算!$C$6:$P$6,,period) -> ¥40,000
B39: =display_long_period & "支出: " & TEXT(INDEX(预算!$C$7:$P$7,,period),"$#,##0") -> 3 月支出: $59,330 | C39: =INDEX(预算!$C$7:$P$7,,period) -> ¥59,330
B40: =display_long_period & "现金流" -> 3 月现金流 | C40: =ABS(INDEX(预算!$C$8:$P$8,,period)) -> ¥19,330 | D40: =REPT("-",INDEX(预算!$C$8:$P$8,,period)<0) -> -
